bitfinex-derivatives/quotes_ETHF0:USTF0_20250909
["timestamp","ask_amount","ask_price","bid_price","bid_amount"]
[1757387999025,0.749,4300.9,4300.8,0.7176]
[1757388000628,1.45294342,4300.9,4300.8,0.2116]
[1757388001218,1.45294342,4300.9,4300.8,0.5072]
[1757388001820,1.45294342,4300.9,4300.8,0.7176]
[1757388005131,0.2125,4300.2,4300.1,0.7176]
[1757388005331,0.3025,4300.4,4300.1,0.94121456]
[1757388005532,0.3025,4300.4,4300.3,0.7176]
[1757388005833,0.3025,4300.4,4300.3,1.00428456]
[1757388006235,0.515,4300.4,4300.3,1.00428456]
[1757388007633,0.7154,4300.4,4300.3,1.00428456]
[1757388007934,0.9494,4300.4,4300.3,0.28668456]
[1757388009433,0.9494,4300.4,4299.9,0.2956]
[1757388009629,0.6469,4300.4,4300.0,0.58238704]
[1757388009830,0.7154,4300.2,4300.1,0.28678704]
[1757388010236,0.7154,4300.2,4300.1,0.49838704]
[1757388010434,0.7154,4300.2,4300.1,0.79398704]
[1757388012539,2.21535156,4300.2,4300.1,0.28678704]
[1757388012840,0.7154,4299.9,4299.8,0.51068845]
[1757388013031,0.7154,4299.9,4299.8,0.79751181]
[1757388013232,0.7154,4299.9,4299.8,1.00791181]
[1757388016340,0.7154,4299.9,4299.8,0.50191181]
[1757388016540,0.7154,4299.9,4299.8,0.50918845]
[1757388017742,0.7154,4299.9,4299.8,0.79519443]
[1757388017943,0.7154,4299.9,4299.8,0.99749443]
[1757388023049,0.7154,4299.9,4299.8,0.99742076]
[1757388027747,0.7154,4299.9,4299.8,0.71148845]
[1757388028552,0.9494,4299.9,4299.8,0.71148845]
[1757388029146,0.9494,4299.9,4299.8,0.9977157]
[1757388029451,0.9494,4299.9,4299.8,0.71148845]
[1757388029852,0.7154,4299.9,4299.8,0.71148845]
[1757388030052,0.749,4299.9,4299.8,0.9977101]
[1757388030249,0.234,4299.9,4299.8,0.99771178]
[1757388030443,42.17488192,4301.0,4300.1,0.2941]
[1757388030444,0.5126,4300.4,4300.1,0.2941]
[1757388030648,0.5126,4300.4,4300.3,0.7125]
[1757388030849,2.44017319,4300.4,4300.3,0.7125]
[1757388031647,2.64327319,4300.4,4300.3,0.2161]
[1757388033550,2.64327319,4300.4,4299.8,0.00348845]
[1757388033750,0.7157,4300.0,4299.9,0.99887994]
[1757388036961,1.34545173,4300.0,4299.9,0.50247994]
[1757388037260,1.34545173,4300.0,4299.9,0.79657994]
[1757388037661,1.34545173,4300.0,4299.9,0.5102]
[1757388038459,1.34545173,4300.0,4299.9,0.2161]
[1757388039449,1.34545173,4300.0,4299.9,0.50290548]
[1757388040661,1.34545173,4300.0,4299.9,0.79700548]
[1757388043962,4.55325173,4300.0,4299.9,0.79700548]
[1757388047963,4.55325173,4300.0,4299.9,0.50290548]
[1757388050265,4.55325173,4300.0,4299.9,0.28680548]
[1757388052966,4.78725173,4300.0,4299.9,0.28680548]
[1757388054167,4.55325173,4300.0,4299.9,0.28680548]
[1757388054367,4.78725173,4300.0,4299.9,0.28680548]
[1757388060069,4.78725173,4300.0,4299.9,0.60472261]
[1757388061262,4.78725173,4300.0,4299.9,0.60480705]
[1757388064465,5.01981174,4300.0,4299.9,0.60480705]
[1757388064661,0.0816,4299.3,4299.0,0.295]
[1757388064862,1.45177905,4299.1,4299.0,0.635]
[1757388065064,1.53337905,4299.1,4299.0,0.635]
[1757388065768,1.45177905,4299.1,4299.0,0.635]
[1757388066171,1.68577905,4299.1,4299.0,0.635]
[1757388069569,1.76737905,4299.1,4299.0,0.635]
[1757388072579,1.53337905,4299.1,4299.0,0.635]
[1757388072776,1.68577905,4299.1,4299.0,0.635]
[1757388077483,0.4952,4299.1,4299.0,0.635]
[1757388077783,1.68577905,4299.1,4299.0,0.635]
[1757388078471,1.76707905,4299.1,4299.0,0.635]
[1757388079175,1.76707905,4299.1,4299.0,0.4207]
[1757388080071,1.76707905,4299.1,4299.0,0.295]
[1757388080280,2.27889386,4299.1,4299.0,0.295]
[1757388080474,2.27889386,4299.1,4299.0,0.4237]
[1757388082383,2.19759386,4299.1,4299.0,0.6272]
[1757388082585,2.27889386,4299.1,4299.0,0.6272]
[1757388082988,2.04489386,4299.1,4299.0,0.6272]
[1757388083285,2.27889386,4299.1,4299.0,0.6272]
[1757388086386,2.19759386,4299.1,4299.0,0.6272]
[1757388087476,2.27889386,4299.1,4299.0,0.4237]
[1757388087682,2.27889386,4299.1,4299.0,0.295]
[1757388089390,2.27889386,4299.1,4299.0,0.4237]
[1757388090079,0.77301481,4299.1,4299.0,0.8257]
[1757388090279,0.74581481,4299.1,4299.0,0.8257]
[1757388091888,0.87631481,4299.1,4299.0,0.8257]
[1757388092484,0.8765659,4299.1,4299.0,0.8257]
[1757388095093,1.0070659,4299.1,4299.0,0.8257]
[1757388095293,1.0886659,4299.1,4299.0,0.4237]
[1757388095790,1.0886659,4299.1,4299.0,0.6272]
[1757388095990,1.0070659,4299.1,4299.0,0.6272]
[1757388096192,1.0886659,4299.1,4299.0,0.6272]
[1757388097295,1.0886659,4299.1,4299.0,0.4237]
[1757388097492,1.0886659,4299.1,4299.0,0.295]
[1757388097796,1.0070659,4299.1,4299.0,0.8257]
[1757388099192,1.0886659,4299.1,4299.0,0.6272]
[1757388099594,1.0070659,4299.1,4299.0,0.6272]
[1757388112504,1.0878659,4299.1,4299.0,0.6272]
[1757388113204,1.0878659,4299.1,4299.0,0.4237]
[1757388114004,1.0878659,4299.1,4299.0,0.6384]
[1757388114506,1.0070659,4299.1,4299.0,0.6384]
[1757388115007,1.0878659,4299.1,4299.0,0.6384]
[1757388115906,1.0878659,4299.1,4299.0,0.295]
[1757388116098,0.2602,4298.7,4298.3,0.3193]
[1757388116408,0.2602,4298.2,4298.1,0.534]
[1757388116604,1.99508184,4298.2,4298.1,0.7443]
[1757388116904,2.50827331,4298.2,4298.1,0.7443]
[1757388120104,2.24807331,4298.2,4298.1,0.7443]
[1757388121710,2.37817331,4298.2,4298.1,0.7443]
[1757388122209,0.51319147,4298.2,4298.1,0.7443]
[1757388122506,3.2078,4298.7,4298.6,0.7443]
[1757388122704,3.95431108,4298.7,4298.6,0.7443]
[1757388122904,4.08441108,4298.7,4298.6,0.7443]
[1757388124208,4.21451108,4298.7,4298.6,0.7443]
[1757388124415,3.95431108,4298.7,4298.6,0.7443]
[1757388126513,0.87661108,4298.7,4298.6,0.7443]
[1757388127919,0.87682153,4298.7,4298.6,0.7443]
[1757388132623,1.08772153,4298.7,4298.6,0.534]
[1757388132920,1.08772153,4298.7,4298.6,0.3193]
[1757388132921,4.29552153,4298.7,4298.6,0.3193]
[1757388133220,4.29552153,4298.7,4298.6,0.534]
[1757388133221,4.21472153,4298.7,4298.6,0.534]
[1757388133421,4.21472153,4298.7,4298.6,0.7443]
[1757388136416,4.29602153,4298.7,4298.6,0.534]
[1757388136616,4.29602153,4298.7,4298.6,0.3193]
[1757388137421,0.1301,4298.2,4298.1,0.6961]
[1757388137621,0.87682153,4298.2,4298.1,0.6961]
[1757388137823,0.3641,4298.2,4298.1,0.6961]
[1757388138324,0.234,4298.2,4298.1,0.6961]
[1757388144232,0.3641,4298.2,4298.1,0.6961]
[1757388146034,0.234,4298.2,4298.1,0.6961]
[1757388149939,0.3641,4298.2,4298.1,0.6961]
[1757388150934,0.87754155,4298.2,4298.1,0.6961]
[1757388151834,0.3641,4298.2,4298.1,0.6961]
[1757388152238,0.87759435,4298.2,4298.1,0.6961]
[1757388152438,1.00769435,4298.2,4298.1,0.6961]
[1757388153743,0.74749435,4298.2,4298.1,0.6961]
[1757388153934,0.51349435,4298.2,4298.1,0.6961]
[1757388155741,0.64419435,4298.2,4298.1,0.6961]
[1757388160337,0.87819435,4298.2,4298.1,0.6961]
[1757388161144,1.00889435,4298.2,4298.1,0.6961]
[1757388161343,1.09059435,4298.2,4298.1,0.4957]
[1757388162440,1.00889435,4298.2,4298.1,0.4957]
[1757388162637,1.00889435,4298.2,4298.1,0.6961]
[1757388164039,0.87819435,4298.2,4298.1,0.6961]
[1757388164238,0.74749435,4298.2,4298.1,0.6961]
[1757388166045,0.87819435,4298.2,4298.1,0.6961]
[1757388166646,0.64419435,4298.2,4298.1,0.6961]
[1757388166847,0.87819435,4298.2,4298.1,0.6961]
[1757388169838,0.51349435,4298.2,4298.1,0.6961]
[1757388170044,0.234,4298.2,4298.1,1.94710829]
[1757388170244,0.234,4298.2,4298.1,0.6961]
[1757388170442,0.234,4298.2,4298.1,0.92876]
[1757388170644,0.234,4298.2,4298.1,0.6961]
[1757388171346,3.2078,4298.5,4298.4,0.4202]
[1757388171545,3.72104093,4298.5,4298.4,0.7317]
[1757388172953,3.85114093,4298.5,4298.4,0.7317]
[1757388173144,3.3379,4298.5,4298.4,0.7317]
[1757388176254,3.5719,4298.5,4298.4,0.7317]
[1757388176649,3.2078,4298.5,4298.4,0.7317]
[1757388176846,3.4418,4298.5,4298.4,0.7317]
[1757388177747,3.95486821,4298.5,4298.4,0.7317]
[1757388179354,3.72086821,4298.5,4298.4,0.7317]
[1757388179560,3.95486821,4298.5,4298.4,0.7317]
[1757388179859,4.08496821,4298.5,4298.4,0.7317]
[1757388181560,3.85096821,4298.5,4298.4,0.7317]
[1757388181755,4.21506821,4298.5,4298.4,0.7317]
[1757388183761,4.29636821,4298.5,4298.4,0.5204]
[1757388184155,5.4879225,4298.5,4298.4,0.5204]
[1757388184470,0.3415,4298.2,4298.1,0.3115]
[1757388184661,1.76705429,4298.2,4298.1,0.3115]
[1757388184861,2.2801225,4298.2,4298.1,0.3115]
[1757388186460,2.2801225,4298.2,4297.6,1.25538578]
[1757388186657,1.53305429,4297.7,4297.6,1.56688578]
[1757388186853,1.76705429,4297.7,4297.6,0.3115]
[1757388187957,0.4942,4297.7,4297.6,1.77578578]
[1757388188158,0.00348845,4298.1,4298.0,0.1229]
[1757388188360,0.36758845,4298.1,4298.0,0.8546]
[1757388188762,1.0115721,4298.1,4298.0,0.8546]
[1757388189564,0.49768845,4298.1,4298.0,0.8546]
[1757388190463,1.01151528,4298.1,4298.0,0.8546]
[1757388191259,0.49768845,4298.1,4298.0,0.8546]
[1757388192165,0.57898845,4298.1,4298.0,0.3115]
[1757388192370,1.0114968,4298.1,4297.6,1.25488739]
[1757388192567,1.45175429,4297.8,4297.7,0.5204]
[1757388192763,1.68575429,4297.8,4297.7,0.5204]
[1757388194272,1.68575429,4297.8,4297.7,0.7317]
[1757388194966,0.00348845,4298.1,4298.0,0.1229]
[1757388195262,0.26368845,4298.1,4298.0,0.8546]
[1757388196365,0.34538845,4298.1,4298.0,0.3115]
[1757388196571,0.85913556,4298.1,4298.0,0.3115]
[1757388196970,0.34538845,4298.1,4298.0,0.3115]
[1757388197269,1.09312354,4298.1,4298.0,0.3115]
[1757388198665,0.57938845,4298.1,4298.0,0.3115]
[1757388198970,0.57938845,4298.1,4298.0,0.4358]
[1757388201874,1.09307154,4298.1,4298.0,0.3115]
[1757388204879,1.09307154,4298.1,4298.0,0.4358]
[1757388214393,2.59488247,4298.1,4298.0,0.4358]
[1757388216792,2.59488247,4298.1,4298.0,0.6424]
[1757388222504,2.38308247,4298.1,4298.0,0.8466]
[1757388222903,1.01147154,4298.1,4298.0,0.8466]
[1757388225000,1.09277154,4298.1,4298.0,0.8466]
[1757388225205,1.09277154,4298.1,4298.0,0.6424]
[1757388226305,1.01147154,4298.1,4298.0,0.6424]
[1757388230207,1.01147154,4298.1,4298.0,0.853]
[1757388232005,1.09307154,4298.1,4298.0,0.6424]
[1757388232807,0.3195,4297.7,4297.4,1.25488739]
[1757388233015,0.7113,4297.4,4297.3,1.45948739]
[1757388233211,1.45898309,4297.4,4297.3,0.2046]
[1757388234314,1.45898309,4297.4,4297.3,0.4152]
[1757388234611,0.9453,4297.4,4297.3,0.4152]
[1757388234911,0.9453,4297.4,4297.3,0.731]
[1757388235110,1.46005922,4297.4,4297.3,0.731]
[1757388235310,0.9453,4297.4,4297.3,0.731]
[1757388238713,1.45982535,4297.4,4297.3,0.5204]
[1757388240014,1.45982535,4297.4,4297.3,0.731]
[1757388243815,0.234,4297.4,4297.3,0.731]
[1757388244920,0.9453,4297.4,4297.3,0.731]
[1757388246519,0.6258,4297.4,4297.3,0.731]
[1757388247516,0.7113,4297.4,4297.3,0.731]
[1757388247723,0.9453,4297.4,4297.3,0.731]
[1757388249622,0.9453,4297.4,4297.3,0.3158]
[1757388249817,0.9453,4297.4,4297.1,0.3158]
[1757388250611,0.6258,4297.4,4297.3,0.2046]
[1757388250815,0.6258,4297.4,4297.3,0.5204]
[1757388251116,0.9453,4297.4,4297.3,0.5204]
[1757388251323,1.46044312,4297.4,4297.3,0.5204]
[1757388252220,1.46044312,4297.4,4297.3,0.731]
[1757388254424,1.14094312,4297.4,4297.3,0.731]
[1757388254617,0.3918,4297.4,4297.3,0.731]
[1757388254817,0.4294,4297.4,4297.3,0.731]
[1757388255316,0.94458424,4297.4,4297.3,0.731]
[1757388257824,0.7259,4297.4,4297.3,0.731]
[1757388258025,0.9215,4297.4,4297.3,0.731]
[1757388258225,1.43682059,4297.4,4297.3,0.731]
[1757388259025,1.43682059,4297.4,4297.0,0.127]
[1757388259224,0.7031,4297.1,4297.0,0.8241]
[1757388259425,0.9371,4297.1,4297.0,0.8241]
[1757388259729,0.6406,4297.1,4297.0,0.8241]
[1757388261828,3.2078,4297.6,4297.5,0.8229]
[1757388262031,0.74956349,4297.6,4297.5,0.8229]
[1757388262327,0.74961566,4297.6,4297.5,0.8229]
[1757388263122,0.51561566,4297.6,4297.5,0.8229]
[1757388263330,0.74961566,4297.6,4297.5,0.8229]
[1757388263925,0.51561566,4297.6,4297.5,0.8229]
[1757388264124,0.74961566,4297.6,4297.5,0.8229]
[1757388266327,0.234,4297.6,4297.5,0.8229]
[1757388267629,0.74951585,4297.6,4297.5,0.8229]
[1757388267828,0.74951194,4297.6,4297.5,0.8229]
[1757388270329,0.51551194,4297.6,4297.5,0.8229]
[1757388270726,0.00348845,4298.1,4298.0,0.8229]
[1757388270930,0.51892796,4298.1,4298.0,0.8229]
[1757388272235,0.72992796,4298.1,4298.0,0.8229]
[1757388272936,0.92552796,4298.1,4298.0,0.8229]
[1757388273237,2.72383889,4298.1,4298.0,0.2926]
[1757388274243,2.72342233,4298.1,4298.0,0.2926]
[1757388275133,2.95742233,4298.1,4298.0,0.2926]
[1757388275433,0.7031,4297.6,4297.5,0.6155]
[1757388275744,1.21812295,4297.6,4297.5,0.6155]
[1757388276630,1.21812295,4297.6,4297.5,0.8229]
[1757388277839,0.7031,4297.6,4297.5,0.8229]
[1757388281739,1.79575792,4297.6,4297.5,0.8229]
[1757388283539,0.4066,4297.4,4297.3,0.2926]
[1757388283739,0.7031,4297.4,4297.3,0.4897]
[1757388283944,0.7031,4297.4,4297.3,0.6971]
[1757388284538,0.4066,4297.4,4297.3,0.6971]
[1757388284944,1.32665792,4297.6,4297.5,0.8229]
[1757388285144,1.30365792,4297.6,4297.5,0.8229]
[1757388285636,1.79575792,4297.6,4297.5,0.8229]
[1757388285841,0.234,4297.7,4297.5,0.8229]
[1757388286036,0.445,4297.7,4297.6,0.2926]
[1757388286232,0.211,4297.7,4297.6,0.6971]
[1757388286438,0.7039,4297.7,4297.6,0.6971]
[1757388288339,0.7039,4297.7,4297.6,0.2926]
[1757388288541,1.21813532,4297.7,4297.6,0.2926]
[1757388289744,1.21813532,4297.7,4297.2,4.46268739]
[1757388289946,1.79655792,4297.4,4297.3,0.5194]
[1757388300155,1.79655792,4297.4,4297.3,0.3044]
[1757388300360,1.79655792,4297.4,4297.2,1.25488739]
[1757388300361,0.7039,4297.3,4297.2,1.25488739]
[1757388300552,0.7039,4297.3,4297.0,0.3044]
[1757388300754,1.79655792,4297.1,4296.9,1.25488739]
[1757388300961,0.7039,4297.0,4296.9,1.25488739]
[1757388301268,0.2973,4296.9,4296.8,1.25488739]
[1757388301555,0.7039,4296.9,4296.8,1.25488739]
[1757388301758,0.4066,4296.9,4296.7,1.25488739]
[1757388302066,0.7039,4296.7,4296.6,1.55928739]
[1757388302263,0.7039,4296.7,4296.6,0.5194]
[1757388305965,0.7039,4296.4,4296.3,1.46988739]
[1757388306166,0.7039,4296.4,4296.3,0.215]
[1757388306667,0.7039,4296.4,4296.3,0.7235]
[1757388307664,0.7039,4296.4,4296.3,0.3044]
[1757388307869,0.2973,4296.3,4296.1,0.3044]
[1757388308068,1.79655792,4296.2,4296.1,0.3044]
[1757388309157,1.79655792,4296.2,4296.1,0.5194]
[1757388310668,1.79655792,4296.2,4296.1,0.7235]
[1757388313868,1.79655792,4296.2,4296.1,0.5194]
[1757388314563,1.79655792,4296.2,4296.1,0.3044]
[1757388314967,1.79655792,4296.2,4295.6,3.2078]
[1757388315176,0.7039,4295.8,4295.7,0.7235]
[1757388315367,0.1965,4295.8,4295.7,0.7235]
[1757388315670,0.7039,4295.8,4295.7,0.7235]
[1757388315865,0.4066,4295.8,4295.7,0.7235]
[1757388318470,0.7277,4295.8,4295.7,0.7235]
[1757388324374,0.7277,4295.8,4295.7,1.97838739]
[1757388326883,0.4066,4295.8,4295.7,1.97838739]
[1757388327287,0.4066,4295.8,4295.7,0.7235]
[1757388330581,0.1965,4295.8,4295.7,0.7235]
[1757388330782,1.41375792,4296.2,4296.0,0.1294]
[1757388330988,3.2078,4296.5,4296.4,0.3198]
[1757388331181,4.15963986,4296.5,4296.4,0.7239]
[1757388331484,4.36103986,4296.5,4296.4,0.7239]
[1757388331679,4.68213986,4296.5,4296.4,0.7239]
[1757388334783,0.95183986,4296.5,4296.4,0.7239]
[1757388334988,3.2078,4297.0,4296.4,5.97928965]
[1757388335183,0.234,4297.1,4296.8,1.85022914]
[1757388335387,3.4118,4297.6,4297.5,0.8533]
[1757388335588,0.3211,4298.0,4297.5,0.8533]
[1757388335790,0.00348845,4298.1,4298.0,0.8533]
[1757388335988,0.00348845,4298.1,4298.0,1.97962914]
[1757388336385,0.00348845,4298.1,4298.0,0.8533]
[1757388342594,0.00348845,4298.1,4298.0,1.0873]
[1757388344390,0.234,4298.9,4298.5,0.1294]
[1757388344591,0.234,4298.9,4298.8,0.7239]
[1757388345187,0.438,4298.9,4298.8,0.7239]
[1757388345892,0.7265,4299.1,4299.0,0.5335]
[1757388346393,0.7265,4299.1,4299.0,0.8336]
[1757388348996,0.7265,4299.1,4299.0,0.7042]
[1757388349785,0.7265,4299.1,4299.0,0.8256]
[1757388350596,0.4054,4299.1,4299.0,0.8256]
[1757388351596,0.234,4299.1,4299.0,0.8256]
[1757388351996,0.3186,4299.6,4299.5,0.5307]
[1757388351997,0.7444,4299.6,4299.5,0.5307]
[1757388352196,0.234,4299.7,4299.6,0.3001]
[1757388352501,0.4464,4299.7,4299.6,0.7094]
[1757388353897,0.7444,4299.7,4299.6,0.7094]
[1757388354095,0.9784,4299.7,4299.6,0.7094]
[1757388356101,0.234,4299.7,4299.6,0.7094]
[1757388356408,3.2078,4299.8,4299.7,0.3001]
[1757388356608,3.4418,4299.8,4299.7,0.7094]
[1757388357205,0.234,4299.8,4299.7,0.7094]
[1757388357405,0.4464,4299.8,4299.7,0.7094]
[1757388357609,0.9784,4299.8,4299.7,0.7094]
[1757388357807,0.9784,4299.8,4299.7,0.3001]
[1757388360908,0.9784,4299.8,4299.7,0.7094]
[1757388361509,1.25465902,4299.8,4299.7,0.7094]
[1757388361711,0.9784,4299.8,4299.7,0.7094]
[1757388361911,4.1862,4299.8,4299.1,0.3001]
[1757388362308,0.2124,4299.2,4299.1,0.7094]
[1757388365427,0.234,4299.5,4299.2,0.3001]
[1757388365624,0.9784,4299.5,4299.4,0.7094]
[1757388365826,1.4904126,4299.5,4299.4,0.7094]
[1757388367923,0.9784,4299.5,4299.4,0.7094]
[1757388370326,0.6598,4299.5,4299.4,0.7094]
[1757388371034,0.7444,4300.1,4300.0,0.8308]
[1757388371234,1.49028312,4300.1,4300.0,0.8308]
[1757388372629,0.1258,4300.5,4300.0,4.98718375]
[1757388372830,0.1258,4301.0,4300.4,1.37008375]
[1757388372831,1.25168192,4300.9,4300.4,1.37008375]
[1757388373026,0.1258,4301.0,4300.8,1.37008375]
[1757388373429,0.3186,4300.9,4300.8,1.37008375]
[1757388374034,0.531,4300.9,4300.8,1.37008375]
[1757388374836,0.3186,4300.9,4300.8,5.37008375]
[1757388375432,0.3186,4300.9,4300.8,4.0]
[1757388379239,0.3053,4301.4,4300.8,4.0]
[1757388379440,0.3053,4301.4,4301.2,3.2078]
[1757388379743,0.3053,4301.3,4301.2,3.2078]
[1757388380633,0.514,4301.3,4301.2,3.2078]
[1757388382239,0.7089,4301.3,4301.2,3.2078]
[1757388387350,0.7089,4301.3,4300.1,3.2078]
[1757388387351,0.514,4300.2,4300.1,3.2078]
[1757388387545,0.514,4300.2,4300.1,3.4448]
[1757388387741,0.3053,4300.2,4300.1,3.4448]
[1757388388239,0.3053,4300.4,4300.1,3.4448]
[1757388388440,0.1244,4300.5,4300.1,3.4448]
[1757388389441,0.3053,4300.4,4300.1,3.4448]
[1757388389638,0.3053,4300.7,4300.1,3.4448]
[1757388389843,0.3053,4300.7,4300.6,3.2078]
[1757388390045,0.3053,4300.7,4300.6,3.4448]
[1757388390444,0.514,4300.7,4300.6,3.4448]
[1757388396456,0.3053,4300.7,4300.6,3.4448]
[1757388399360,0.514,4300.7,4300.6,3.4448]
[1757388400053,0.514,4300.7,4300.6,3.4462]
[1757388402446,1.02073037,4300.7,4300.6,3.4462]
[1757388407957,0.514,4300.7,4300.6,3.4462]
[1757388409659,0.312,4301.3,4300.6,7.67872]
[1757388409958,0.5225,4301.3,4301.2,1.12396584]
[1757388410167,0.312,4301.3,4301.2,1.35996584]
[1757388412360,0.5225,4301.3,4301.2,1.35996584]
[1757388417664,0.5225,4301.3,4300.4,0.41852]
[1757388417665,0.1227,4301.0,4300.8,1.25266555]
[1757388417870,0.842,4300.0,4299.9,1.25266555]
[1757388418064,0.842,4300.0,4299.9,0.236]
[1757388418364,0.2105,4300.4,4299.9,1.48866555]
[1757388418557,0.312,4300.4,4300.3,1.12396584]
[1757388418761,0.312,4300.4,4300.3,1.35996584]
[1757388419772,0.5225,4300.4,4300.3,1.35996584]
[1757388421074,0.312,4300.4,4300.3,1.35996584]
[1757388421973,0.312,4300.4,4300.3,0.236]
[1757388422171,0.5225,4300.4,4300.3,1.35996584]
[1757388422367,0.7193,4300.4,4300.1,1.25266555]
[1757388422570,0.7193,4300.4,4300.3,0.236]
[1757388422769,0.7193,4300.4,4300.3,1.35996584]
[1757388422976,0.7193,4300.4,4300.3,4.56776584]
[1757388423375,0.7193,4300.4,4300.3,4.33176584]
[1757388423676,0.7193,4300.4,4300.3,4.56776584]
[1757388424374,0.312,4300.4,4300.3,4.56776584]
[1757388425476,0.5225,4300.4,4300.3,4.56776584]
[1757388427378,0.5225,4300.4,4300.3,4.76776584]
[1757388433381,0.7193,4300.4,4300.3,3.6438]
[1757388433580,0.7193,4300.4,4300.3,3.4078]
[1757388433781,0.7193,4300.4,4300.3,4.6584721]
[1757388433972,0.7193,4300.4,4300.3,4.8934721]
[1757388437986,0.7193,4300.4,4300.3,3.6428]
[1757388445388,0.7193,4300.4,4300.3,4.8934721]
[1757388447491,0.5225,4300.4,4300.3,3.6428]
[1757388447691,0.312,4300.4,4300.3,3.6428]
[1757388447987,0.1227,4301.0,4300.3,5.12813311]
[1757388447988,0.3166,4300.9,4300.3,5.12813311]
[1757388448186,0.3166,4300.9,4300.8,4.33176584]
[1757388448584,0.82416479,4300.9,4300.8,4.33176584]
[1757388448989,1.02356479,4300.9,4300.8,4.33176584]
[1757388450978,1.02356479,4300.9,4300.8,4.33396584]
[1757388450979,0.50756479,4300.9,4300.8,4.33396584]
[1757388451182,0.3166,4301.1,4300.8,3.44251]
[1757388451382,0.3166,4301.1,4301.0,5.58512685]
[1757388451597,0.3166,4301.1,4301.0,4.33396584]
[1757388451787,0.3166,4301.1,4301.0,5.58512685]
[1757388452688,0.1258,4301.5,4301.0,5.58512685]
[1757388452890,0.3252,4301.5,4301.4,0.0022]
[1757388453193,0.3252,4301.5,4301.4,0.2372]
[1757388453395,0.6418,4301.5,4301.4,0.2372]
[1757388454993,1.03424701,4301.5,4301.3,0.235]
[1757388455288,0.7183,4301.4,4301.3,0.235]
[1757388455593,0.7183,4301.4,4301.3,0.2361]
[1757388456490,0.7183,4301.4,4301.3,0.0011]
[1757388457387,0.1258,4301.5,4301.0,3.2078]
[1757388457388,0.3166,4301.3,4301.1,0.235]
[1757388457592,0.7183,4301.2,4301.1,0.2361]
[1757388457792,0.7183,4301.2,4301.1,0.2372]
[1757388465296,0.7183,4301.2,4301.1,0.2361]
[1757388466790,0.7183,4301.2,4301.0,3.2078]
[1757388466996,0.718,4301.1,4301.0,3.2078]
[1757388467196,0.718,4301.1,4301.0,3.4428]
[1757388468598,0.718,4301.1,4301.0,3.2078]
[1757388471293,0.5212,4301.1,4301.0,3.2078]
[1757388471598,0.3163,4301.1,4301.0,3.2078]
[1757388471898,0.3163,4301.1,4301.0,4.45896101]
[1757388472093,0.1227,4302.0,4301.0,4.45896101]
[1757388472094,0.3163,4301.9,4301.1,0.41846]
[1757388472291,0.3163,4301.7,4301.5,3.2078]
[1757388472492,0.1227,4302.0,4301.8,1.36832612]
[1757388472695,0.439,4302.0,4301.9,0.235]
[1757388472889,0.6439,4302.0,4301.9,0.235]
[1757388474997,0.8407,4302.0,4301.9,0.235]
[1757388478205,0.3163,4301.9,4301.6,1.2479071]
[1757388478398,0.718,4301.8,4301.7,0.235]
[1757388479501,0.4017,4301.8,4301.7,0.235]
[1757388480199,0.718,4301.8,4301.7,0.235]
[1757388480395,0.4017,4301.8,4301.6,1.2479071]
[1757388480598,0.4017,4301.6,4301.5,3.2078]
[1757388480794,4.57612612,4302.3,4301.5,3.2078]
[1757388480795,3.2078,4302.3,4301.5,3.2078]
[1757388480994,2.08688723,4304.1,4301.5,3.2078]
[1757388480995,0.68070778,4304.1,4303.7,0.41821]
[1757388481303,0.68070778,4304.1,4302.4,10.45835]
[1757388481304,0.1264,4305.5,4304.0,4.57612612]
[1757388481605,0.5281,4306.0,4305.9,0.4091]
[1757388481801,0.5281,4306.0,4305.9,5.81220602]
[1757388482005,0.5281,4306.0,4305.9,5.30132612]
[1757388482200,3.3342,4307.5,4305.9,5.30132612]
[1757388482201,3.3342,4307.5,4305.9,3.6169]
[1757388482402,3.3342,4307.5,4305.5,1.24068585]
[1757388482403,0.4017,4306.6,4306.5,4.57612612]
[1757388482609,0.4017,4306.6,4306.5,5.40199252]
[1757388482800,0.4017,4306.6,4306.5,4.78332612]
[1757388483001,0.4017,4306.6,4306.5,4.98522612]
[1757388483199,0.1264,4307.0,4306.5,4.98522612]
[1757388483409,0.6476,4307.0,4306.9,1.77742612]
[1757388483600,0.8444,4307.0,4306.9,1.77742612]
[1757388483801,2.09608192,4307.0,4306.9,1.77742612]
[1757388484407,2.09608192,4307.0,4306.9,0.4091]
[1757388486200,2.09608192,4307.0,4306.9,0.2072]
[1757388486403,2.09608192,4307.0,4306.9,0.89757634]
[1757388486609,2.09608192,4307.0,4306.9,0.69037634]
[1757388488310,2.09608192,4307.0,4306.9,0.68877282]
[1757388488509,2.09608192,4307.0,4306.9,0.36300883]
[1757388488710,2.09608192,4307.0,4306.9,0.6887752]
[1757388488907,5.30388192,4307.0,4306.9,0.6887752]
[1757388489108,5.30388192,4307.0,4306.9,0.36300883]
[1757388489408,9.30388192,4307.0,4306.9,0.36300883]
[1757388492613,9.30388192,4307.0,4306.9,0.36306023]
[1757388494510,5.30388192,4307.0,4306.9,0.36306023]
[1757388494716,9.30388192,4307.0,4306.9,0.36306023]
[1757388497412,9.30388192,4307.0,4306.0,3.4999]
[1757388497618,1.78888192,4306.5,4306.4,0.1963]
[1757388497817,1.78888192,4306.5,4306.4,0.5593607]
[1757388498017,0.8443,4306.5,4306.4,0.5593607]
[1757388498619,0.6405,4306.5,4306.4,1.0459607]
[1757388498818,0.8443,4306.5,4306.4,0.7538607]
[1757388500508,0.8443,4306.5,4306.4,0.3908]
[1757388500715,0.8443,4306.5,4306.4,0.55251558]
[1757388502216,0.8443,4306.5,4306.4,0.74701558]
[1757388503115,0.8443,4306.5,4306.4,1.07097159]
[1757388504317,0.8443,4306.5,4306.4,2.43578935]
[1757388505226,0.8443,4306.5,4306.4,0.87647159]